[Event "Queens Festival Final-D 2022"]
[Site "Tornelo"]
[Date "2022.06.25"]
[Round "4.6"]
[White "Aydogan, Arya"]
[Black "Vujovic, Vera"]
[Result "1-0"]
[ECO "B52"]
[WhiteElo "1409"]
[BlackElo "1353"]
[Annotator "NA RC"]
[PlyCount "75"]
[EventDate "2022.06.24"]
[EventType "tourn"]
[EventCountry "NET"]
[SourceTitle "playchess.com"]
[Source "ChessBase"]
[SourceQuality "1"]
[TimeControl "180+2"]

1. e4 {[%emt 0:00:02]} c5 {[%emt 0:00:04]} 2. Nf3 {[%emt 0:00:02]} d6 {[%emt 0:00:02]} 3. Bb5+ {[%emt 0:00:02]} Bd7 {[%emt 0:00:01]} 4. Bxd7+ {[%emt 0:00:02]} Qxd7 {[%emt 0:00:01]} 5. O-O {[%emt 0:00:02]} Nc6 {[%emt 0:00:03]} 6. Re1 {[%emt 0:00:02]} Nf6 {[%emt 0:00:03]} 7. c3 {[%emt 0:00:02]} e5 {[%emt 0:00:04]} 8. d4 {[%emt 0:00:03]} cxd4 {[%emt 0:00:02]} 9. cxd4 {[%emt 0:00:01]} exd4 {[%emt 0:00:01]} 10. Nxd4 {[%emt 0:00:02]} Nxd4 {[%emt 0:00:11]} 11. Qxd4 {[%emt 0:00:02]} Be7 {[%emt 0:00:01]} 12. e5 {[%emt 0:00:11]} dxe5 {[%emt 0:00:02]} 13. Qxe5 {[%emt 0:00:03]} Rd8 {[%emt 0:00:38]} 14. Nc3 {[%emt 0:00:04]} O-O {[%emt 0:00:17]} 15. Bg5 {[%emt 0:00:53]} Rde8 {[%emt 0:00:36]} 16. Rad1 {[%emt 0:00:10]} Qc6 {[%emt 0:00:04]} 17. Qd4 {[%emt 0:00:21]} Bc5 {[%emt 0:00:11]} 18. Qf4 {[%emt 0:00:09]} Nd5 {[%emt 0:00:15]} 19. Nxd5 {[%emt 0:00:37]} Qxd5 {[%emt 0:00:03]} 20. h3 {[%emt 0:00:10]} Rxe1+ {[%emt 0:00:10]} 21. Rxe1 {[%emt 0:00:01]} Qxa2 {[%emt 0:00:03]} 22. Qc7 {[%emt 0:00:07]} Bb6 {[%emt 0:00:22]} 23. Qxb7 {[%emt 0:00:02]} Qxb2 {[%emt 0:00:03]} 24. Be3 {[%emt 0:00:07]} Bxe3 {[%emt 0:00:03]} 25. Qxb2 {[%emt 0:00:03]} Bb6 {[%emt 0:00:02]} 26. Rd1 {[%emt 0:00:03]} Rb8 {[%emt 0:00:05]} 27. Qe2 {[%emt 0:00:02]} h6 {[%emt 0:00:03]} 28. Kh1 {[%emt 0:00:03]} a5 {[%emt 0:00:03]} 29. Qa6 {[%emt 0:00:03]} Bc7 {[%emt 0:00:04]} 30. g3 {[%emt 0:00:04]} Kh7 {[%emt 0:00:04]} 31. Kg2 {[%emt 0:00:02]} g6 {[%emt 0:00:02]} 32. Rd7 {[%emt 0:00:02]} Be5 {[%emt 0:00:10]} 33. Rxf7+ {[%emt 0:00:02]} Bg7 {[%emt 0:00:02]} 34. Rxg7+ {[%emt 0:00:02]} Kxg7 {[%emt 0:00:01]} 35. Qa7+ {[%emt 0:00:01]} Kf6 {[%emt 0:00:02]} 36. Qxb8 {[%emt 0:00:02]} a4 {[%emt 0:00:01]} 37. Qa7 {[%emt 0:00:01]} a3 {[%emt 0:00:01]} 38. Qxa3 {[%emt 0:00:01]} 1-0

[Event "Queens Festival Final-D 2022"]
[Site "Tornelo"]
[Date "2022.06.25"]
[Round "5.2"]
[White "Jiang, Tianyu"]
[Black "Aydogan, Arya"]
[Result "1-0"]
[ECO "A00"]
[WhiteElo "1502"]
[BlackElo "1409"]
[Annotator "NA RC"]
[PlyCount "103"]
[EventDate "2022.06.24"]
[EventType "tourn"]
[EventCountry "NET"]
[SourceTitle "playchess.com"]
[Source "ChessBase"]
[SourceQuality "1"]
[TimeControl "180+2"]

1. Nc3 {[%emt 0:00:02]} d5 {[%emt 0:00:06]} 2. e4 {[%emt 0:00:02]} dxe4 {[%emt 0:00:04]} 3. Nxe4 {[%emt 0:00:01]} Nf6 {[%emt 0:00:01]} 4. Nxf6+ {[%emt 0:00:01]} exf6 {[%emt 0:00:01]} 5. d4 {[%emt 0:00:02]} Bd6 {[%emt 0:00:01]} 6. Nf3 {[%emt 0:00:02]} O-O {[%emt 0:00:01]} 7. Be2 {[%emt 0:00:03]} b6 {[%emt 0:00:03]} 8. O-O {[%emt 0:00:07]} Bb7 {[%emt 0:00:01]} 9. Nh4 {[%emt 0:00:10]} g6 {[%emt 0:00:07]} 10. Bf3 {[%emt 0:00:03]} Bxf3 {[%emt 0:00:08]} 11. Qxf3 {[%emt 0:00:01]} Nd7 {[%emt 0:00:01]} 12. Qg4 {[%emt 0:00:23]} Kh8 {[%emt 0:00:12]} 13. Bh6 {[%emt 0:00:24]} Re8 {[%emt 0:00:04]} 14. Rfe1 {[%emt 0:00:07]} Bf8 {[%emt 0:00:23]} 15. Bd2 {[%emt 0:00:56]} f5 {[%emt 0:00:11]} 16. Qh3 {[%emt 0:00:16]} Be7 {[%emt 0:00:09]} 17. Nf3 {[%emt 0:00:02]} Bf6 {[%emt 0:00:06]} 18. Bf4 {[%emt 0:00:05]} Nf8 {[%emt 0:00:14]} 19. Rxe8 {[%emt 0:00:02]} Qxe8 {[%emt 0:00:01]} 20. Re1 {[%emt 0:00:02]} Qd7 {[%emt 0:00:08]} 21. Ne5 {[%emt 0:00:10]} Qxd4 {[%emt 0:00:27]} 22. Qf3 {[%emt 0:00:13]} Rc8 {[%emt 0:00:22]} 23. Nxf7+ {[%emt 0:00:13]} Kg7 {[%emt 0:00:02]} 24. c3 {[%emt 0:00:06]} Qd7 {[%emt 0:00:09]} 25. Ne5 {[%emt 0:00:02]} Qe7 {[%emt 0:00:06]} 26. Nd3 {[%emt 0:00:04]} Qd7 {[%emt 0:00:05]} 27. h3 {[%emt 0:00:04]} c5 {[%emt 0:00:05]} 28. Ne5 {[%emt 0:00:03]} Qe6 {[%emt 0:00:07]} 29. Re2 {[%emt 0:00:07]} Qxa2 {[%emt 0:00:07]} 30. Qb7+ {[%emt 0:00:01]} Kg8 {[%emt 0:00:12]} 31. Qxc8 {[%emt 0:00:01]} Qb1+ {[%emt 0:00:01]} 32. Kh2 {[%emt 0:00:01]} Qf1 {[%emt 0:00:04]} 33. Qa6 {[%emt 0:00:05]} Ne6 {[%emt 0:00:04]} 34. Qc4 {[%emt 0:00:01]} Kg7 {[%emt 0:00:04]} 35. Qxe6 {[%emt 0:00:02]} Qxe2 {[%emt 0:00:02]} 36. Qf7+ {[%emt 0:00:01]} Kh8 {[%emt 0:00:02]} 37. Qxf6+ {[%emt 0:00:01]} Kg8 {[%emt 0:00:01]} 38. Qd8+ {[%emt 0:00:01]} Kg7 {[%emt 0:00:02]} 39. Qd7+ {[%emt 0:00:04]} Kh8 {[%emt 0:00:04]} 40. Nf7+ {[%emt 0:00:02]} Kg7 {[%emt 0:00:02]} 41. Be5+ {[%emt 0:00:01]} Kf8 {[%emt 0:00:02]} 42. Bd6+ {[%emt 0:00:06]} Kg7 {[%emt 0:00:01]} 43. Ne5+ {[%emt 0:00:02]} Kh6 {[%emt 0:00:04]} 44. Bf8+ {[%emt 0:00:01]} Kg5 {[%emt 0:00:01]} 45. Qe7+ {[%emt 0:00:02]} Kf4 {[%emt 0:00:04]} 46. Bh6+ {[%emt 0:00:01]} Ke4 {[%emt 0:00:01]} 47. Nxg6+ {[%emt 0:00:02]} Kd3 {[%emt 0:00:02]} 48. Nf4+ {[%emt 0:00:01]} Kd2 {[%emt 0:00:02]} 49. Qxe2+ {[%emt 0:00:01]} Kc1 {[%emt 0:00:01]} 50. Nd3+ {[%emt 0:00:02]} Kb1 {[%emt 0:00:02]} 51. b4 {[%emt 0:00:01]} cxb4 {[%emt 0:00:02]} 52. Qb2# {[%emt 0:00:01]} 1-0

[Event "Queens Festival Final-D 2022"]
[Site "Tornelo"]
[Date "2022.06.25"]
[Round "5.3"]
[White "Amulya Guruprasad"]
[Black "Shriyan santosh Priyasha"]
[Result "1-0"]
[ECO "A42"]
[WhiteElo "1251"]
[BlackElo "1597"]
[Annotator "NA RC"]
[PlyCount "97"]
[EventDate "2022.06.24"]
[EventType "tourn"]
[EventCountry "NET"]
[SourceTitle "playchess.com"]
[Source "ChessBase"]
[SourceQuality "1"]
[TimeControl "180+2"]

1. e4 {[%emt 0:00:02]} g6 {[%emt 0:00:04]} 2. d4 {[%emt 0:00:02]} Bg7 {[%emt 0:00:02]} 3. c4 {[%emt 0:00:01]} d6 {[%emt 0:00:01]} 4. Nc3 {[%emt 0:00:02]} c6 {[%emt 0:00:03]} 5. Be3 {[%emt 0:00:05]} Nd7 {[%emt 0:00:04]} 6. Rc1 {[%emt 0:00:07]} Ngf6 {[%emt 0:00:03]} 7. Bd3 {[%emt 0:00:02]} O-O {[%emt 0:00:04]} 8. Nf3 {[%emt 0:00:02]} e5 {[%emt 0:00:03]} 9. d5 {[%emt 0:00:02]} Qc7 {[%emt 0:00:12]} 10. h3 {[%emt 0:00:06]} Re8 {[%emt 0:00:04]} 11. O-O {[%emt 0:00:02]} Qd8 {[%emt 0:00:11]} 12. Qd2 {[%emt 0:00:14]} Qe7 {[%emt 0:00:08]} 13. Bh6 {[%emt 0:00:06]} Bh8 {[%emt 0:00:02]} 14. Be3 {[%emt 0:00:03]} Bg7 {[%emt 0:00:14]} 15. Nh2 {[%emt 0:00:03]} Nc5 {[%emt 0:00:22]} 16. Bxc5 {[%emt 0:00:02]} dxc5 {[%emt 0:00:00]} 17. dxc6 {[%emt 0:00:02]} bxc6 {[%emt 0:00:03]} 18. Qe3 {[%emt 0:00:18]} Rd8 {[%emt 0:00:13]} 19. Na4 {[%emt 0:00:06]} Nd7 {[%emt 0:00:13]} 20. Rcd1 {[%emt 0:00:15]} Ba6 {[%emt 0:00:05]} 21. Be2 {[%emt 0:00:07]} Bf8 {[%emt 0:00:09]} 22. Ng4 {[%emt 0:00:07]} Nb6 {[%emt 0:00:09]} 23. Nxb6 {[%emt 0:00:14]} axb6 {[%emt 0:00:00]} 24. Kh1 {[%emt 0:00:09]} h5 {[%emt 0:00:09]} 25. Nh2 {[%emt 0:00:03]} b5 {[%emt 0:00:04]} 26. cxb5 {[%emt 0:00:08]} cxb5 {[%emt 0:00:00]} 27. Nf3 {[%emt 0:00:07]} b4 {[%emt 0:00:06]} 28. Rxd8 {[%emt 0:00:21]} Qxd8 {[%emt 0:00:05]} 29. Nxe5 {[%emt 0:00:04]} Bxe2 {[%emt 0:00:05]} 30. Qxe2 {[%emt 0:00:02]} Rxa2 {[%emt 0:00:03]} 31. Qc4 {[%emt 0:00:04]} Ra7 {[%emt 0:00:05]} 32. Nc6 {[%emt 0:00:03]} Qc7 {[%emt 0:00:13]} 33. Nxa7 {[%emt 0:00:02]} Qxa7 {[%emt 0:00:00]} 34. b3 {[%emt 0:00:03]} Qa2 {[%emt 0:00:07]} 35. e5 {[%emt 0:00:04]} Kg7 {[%emt 0:00:15]} 36. f4 {[%emt 0:00:04]} Qd2 {[%emt 0:00:08]} 37. f5 {[%emt 0:00:03]} g5 {[%emt 0:00:20]} 38. f6+ {[%emt 0:00:12]} Kg6 {[%emt 0:00:02]} 39. Qe4+ {[%emt 0:00:03]} Kh6 {[%emt 0:00:02]} 40. e6 {[%emt 0:00:08]} fxe6 {[%emt 0:00:06]} 41. Qxe6 {[%emt 0:00:02]} Qd3 {[%emt 0:00:01]} 42. f7+ {[%emt 0:00:07]} Kg7 {[%emt 0:00:01]} 43. Qf6+ {[%emt 0:00:02]} Kh7 {[%emt 0:00:02]} 44. Rf3 {[%emt 0:00:09]} Qd1+ {[%emt 0:00:02]} 45. Kh2 {[%emt 0:00:02]} Bd6+ {[%emt 0:00:02]} 46. g3 {[%emt 0:00:03]} Qd2+ {[%emt 0:00:01]} 47. Rf2 {[%emt 0:00:02]} Qc3 {[%emt 0:00:03]} 48. Qxd6 {[%emt 0:00:04]} Qe1 {[%emt 0:00:05]} 49. f8=Q {[%emt 0:00:08]} 1-0

[Event "Queens Festival Final-D 2022"]
[Site "Tornelo"]
[Date "2022.06.25"]
[Round "5.5"]
[White "Rajaram, Anika"]
[Black "Mak, Xiu Ning Charlene"]
[Result "0-1"]
[ECO "E62"]
[WhiteElo "1499"]
[BlackElo "1573"]
[Annotator "NA RC"]
[PlyCount "90"]
[EventDate "2022.06.24"]
[EventType "tourn"]
[EventCountry "NET"]
[SourceTitle "playchess.com"]
[Source "ChessBase"]
[SourceQuality "1"]
[TimeControl "180+2"]

1. d4 {[%emt 0:00:02]} Nf6 {[%emt 0:00:05]} 2. c4 {[%emt 0:00:02]} g6 {[%emt 0:00:01]} 3. g3 {[%emt 0:00:01]} Bg7 {[%emt 0:00:02]} 4. Bg2 {[%emt 0:00:00]} d6 {[%emt 0:00:01]} 5. Nc3 {[%emt 0:00:01]} O-O {[%emt 0:00:02]} 6. Nf3 {[%emt 0:00:01]} c6 {[%emt 0:00:02]} 7. O-O {[%emt 0:00:01]} Qa5 {[%emt 0:00:06]} 8. e4 {[%emt 0:00:02]} Bg4 {[%emt 0:00:05]} 9. h3 {[%emt 0:00:04]} Bxf3 {[%emt 0:00:03]} 10. Bxf3 {[%emt 0:00:01]} Nfd7 {[%emt 0:00:03]} 11. Be3 {[%emt 0:00:05]} Qb4 {[%emt 0:00:09]} 12. Qe2 {[%emt 0:00:06]} Nb6 {[%emt 0:00:03]} 13. c5 {[%emt 0:00:09]} dxc5 {[%emt 0:00:04]} 14. dxc5 {[%emt 0:00:02]} N6d7 {[%emt 0:00:25]} 15. a3 {[%emt 0:00:14]} Qb3 {[%emt 0:00:07]} 16. Qd2 {[%emt 0:00:14]} Ne5 {[%emt 0:00:07]} 17. Bd1 {[%emt 0:00:07]} Qe6 {[%emt 0:00:03]} 18. Kg2 {[%emt 0:00:12]} Nc4 {[%emt 0:00:04]} 19. Qc1 {[%emt 0:00:27]} Nxe3+ {[%emt 0:00:03]} 20. Qxe3 {[%emt 0:00:02]} Na6 {[%emt 0:00:14]} 21. Rc1 {[%emt 0:00:14]} Rfd8 {[%emt 0:00:10]} 22. Bg4 {[%emt 0:00:15]} Qb3 {[%emt 0:00:08]} 23. Nd1 {[%emt 0:00:26]} Qxe3 {[%emt 0:00:08]} 24. fxe3 {[%emt 0:00:01]} Rd2+ {[%emt 0:00:03]} 25. Rf2 {[%emt 0:00:02]} Rad8 {[%emt 0:00:03]} 26. b4 {[%emt 0:00:14]} Nc7 {[%emt 0:00:08]} 27. h4 {[%emt 0:00:25]} R8d3 {[%emt 0:00:07]} 28. a4 {[%emt 0:00:04]} h5 {[%emt 0:00:08]} 29. Be2 {[%emt 0:00:04]} Ra3 {[%emt 0:00:09]} 30. Nc3 {[%emt 0:00:03]} Rxc3 {[%emt 0:00:05]} 31. Rcf1 {[%emt 0:00:03]} Ra3 {[%emt 0:00:02]} 32. Kh3 {[%emt 0:00:08]} Rxa4 {[%emt 0:00:03]} 33. Bc4 {[%emt 0:00:05]} Rxf2 {[%emt 0:00:02]} 34. Rxf2 {[%emt 0:00:02]} e6 {[%emt 0:00:08]} 35. Rd2 {[%emt 0:00:02]} Rxb4 {[%emt 0:00:05]} 36. Rd8+ {[%emt 0:00:02]} Bf8 {[%emt 0:00:10]} 37. Bd3 {[%emt 0:00:01]} Rb3 {[%emt 0:00:08]} 38. Rd7 {[%emt 0:00:03]} Na6 {[%emt 0:00:14]} 39. Bxa6 {[%emt 0:00:02]} bxa6 {[%emt 0:00:01]} 40. Rxa7 {[%emt 0:00:01]} Bxc5 {[%emt 0:00:04]} 41. Rxa6 {[%emt 0:00:01]} Bxe3 {[%emt 0:00:01]} 42. Rxc6 {[%emt 0:00:01]} Bf2 {[%emt 0:00:03]} 43. Kg2 {[%emt 0:00:02]} Bxg3 {[%emt 0:00:01]} 44. Rc8+ {[%emt 0:00:01]} Kg7 {[%emt 0:00:01]} 45. Rc2 {[%emt 0:00:02]} Bxh4 {[%emt 0:00:01]} 0-1

[Event "Queens Festival Final-D 2022"]
[Site "Tornelo"]
[Date "2022.06.25"]
[Round "5.6"]
[White "Rozas Lazcano, Valeska"]
[Black "Shah, Riya"]
[Result "1-0"]
[ECO "C50"]
[WhiteElo "1551"]
[BlackElo "1559"]
[Annotator "NA RC"]
[PlyCount "113"]
[EventDate "2022.06.24"]
[EventType "tourn"]
[EventCountry "NET"]
[SourceTitle "playchess.com"]
[Source "ChessBase"]
[SourceQuality "1"]
[TimeControl "180+2"]

1. e4 {[%emt 0:00:02]} e5 {[%emt 0:00:05]} 2. Nf3 {[%emt 0:00:02]} Nc6 {[%emt 0:00:04]} 3. Bc4 {[%emt 0:00:02]} Nd4 {[%emt 0:00:02]} 4. c3 {[%emt 0:00:05]} Nxf3+ {[%emt 0:00:02]} 5. Qxf3 {[%emt 0:00:02]} Qf6 {[%emt 0:00:01]} 6. Qxf6 {[%emt 0:00:04]} Nxf6 {[%emt 0:00:02]} 7. d3 {[%emt 0:00:01]} c6 {[%emt 0:00:04]} 8. Bg5 {[%emt 0:00:07]} Be7 {[%emt 0:00:02]} 9. Nd2 {[%emt 0:00:02]} h6 {[%emt 0:00:01]} 10. Bh4 {[%emt 0:00:04]} b5 {[%emt 0:00:03]} 11. Bb3 {[%emt 0:00:02]} a5 {[%emt 0:00:03]} 12. a4 {[%emt 0:00:06]} Bb7 {[%emt 0:00:08]} 13. Nf3 {[%emt 0:00:05]} d6 {[%emt 0:00:05]} 14. O-O {[%emt 0:00:07]} O-O {[%emt 0:00:09]} 15. Rfe1 {[%emt 0:00:05]} Rfe8 {[%emt 0:00:09]} 16. d4 {[%emt 0:00:15]} exd4 {[%emt 0:00:06]} 17. cxd4 {[%emt 0:00:03]} Nh7 {[%emt 0:00:04]} 18. Bg3 {[%emt 0:00:08]} b4 {[%emt 0:00:07]} 19. Bc4 {[%emt 0:00:09]} d5 {[%emt 0:00:04]} 20. exd5 {[%emt 0:00:03]} cxd5 {[%emt 0:00:01]} 21. Bb5 {[%emt 0:00:02]} Rec8 {[%emt 0:01:00]} 22. Rxe7 {[%emt 0:00:03]} Bc6 {[%emt 0:00:01]} 23. Bxc6 {[%emt 0:00:07]} Rxc6 {[%emt 0:00:02]} 24. Re2 {[%emt 0:00:05]} Rac8 {[%emt 0:00:02]} 25. h3 {[%emt 0:00:04]} Nf6 {[%emt 0:00:02]} 26. Ne5 {[%emt 0:00:04]} R6c7 {[%emt 0:00:06]} 27. f3 {[%emt 0:00:09]} Nh5 {[%emt 0:00:10]} 28. Bh2 {[%emt 0:00:02]} Rc1+ {[%emt 0:00:07]} 29. Rxc1 {[%emt 0:00:03]} Rxc1+ {[%emt 0:00:03]} 30. Kf2 {[%emt 0:00:02]} f6 {[%emt 0:00:01]} 31. Nd3 {[%emt 0:00:02]} Rc6 {[%emt 0:00:07]} 32. g4 {[%emt 0:00:03]} Nf4 {[%emt 0:00:07]} 33. Bxf4 {[%emt 0:00:04]} g5 {[%emt 0:00:02]} 34. Bb8 {[%emt 0:00:01]} Rc8 {[%emt 0:00:03]} 35. Ba7 {[%emt 0:00:02]} Ra8 {[%emt 0:00:04]} 36. Bc5 {[%emt 0:00:01]} Kf7 {[%emt 0:00:04]} 37. b3 {[%emt 0:00:03]} Kg6 {[%emt 0:00:03]} 38. f4 {[%emt 0:00:01]} h5 {[%emt 0:00:04]} 39. f5+ {[%emt 0:00:01]} Kh6 {[%emt 0:00:01]} 40. Be7 {[%emt 0:00:03]} hxg4 {[%emt 0:00:02]} 41. hxg4 {[%emt 0:00:05]} Kg7 {[%emt 0:00:02]} 42. Kf3 {[%emt 0:00:02]} Rc8 {[%emt 0:00:02]} 43. Bc5 {[%emt 0:00:03]} Rc7 {[%emt 0:00:02]} 44. Rh2 {[%emt 0:00:02]} Kg8 {[%emt 0:00:04]} 45. Rh6 {[%emt 0:00:10]} Kg7 {[%emt 0:00:03]} 46. Rg6+ {[%emt 0:00:02]} Kf7 {[%emt 0:00:04]} 47. Ke3 {[%emt 0:00:02]} Rc8 {[%emt 0:00:02]} 48. Rh6 {[%emt 0:00:05]} Re8+ {[%emt 0:00:01]} 49. Kf3 {[%emt 0:00:01]} Re4 {[%emt 0:00:04]} 50. Bb6 {[%emt 0:00:04]} Kg7 {[%emt 0:00:04]} 51. Rh1 {[%emt 0:00:02]} Re7 {[%emt 0:00:04]} 52. Bxa5 {[%emt 0:00:04]} Rc7 {[%emt 0:00:02]} 53. Bxb4 {[%emt 0:00:02]} Rb7 {[%emt 0:00:05]} 54. a5 {[%emt 0:00:01]} Rc7 {[%emt 0:00:08]} 55. a6 {[%emt 0:00:02]} Ra7 {[%emt 0:00:02]} 56. Ra1 {[%emt 0:00:04]} Kf7 {[%emt 0:00:01]} 57. Bc5 {[%emt 0:00:01]} 1-0

[Event "Queens Festival Final-D 2022"]
[Site "Tornelo"]
[Date "2022.06.25"]
[Round "6.2"]
[White "Mak, Xiu Ning Charlene"]
[Black "Rozas Lazcano, Valeska"]
[Result "1/2-1/2"]
[ECO "B42"]
[WhiteElo "1573"]
[BlackElo "1551"]
[Annotator "NA RC"]
[PlyCount "143"]
[EventDate "2022.06.24"]
[EventType "tourn"]
[EventCountry "NET"]
[SourceTitle "playchess.com"]
[Source "ChessBase"]
[SourceQuality "1"]
[TimeControl "180+2"]

1. e4 {[%emt 0:00:02]} c5 {[%emt 0:00:05]} 2. Nf3 {[%emt 0:00:02]} e6 {[%emt 0:00:02]} 3. d4 {[%emt 0:00:02]} cxd4 {[%emt 0:00:02]} 4. Nxd4 {[%emt 0:00:00]} a6 {[%emt 0:00:01]} 5. Bd3 {[%emt 0:00:02]} b5 {[%emt 0:00:02]} 6. a3 {[%emt 0:00:07]} Qc7 {[%emt 0:00:17]} 7. O-O {[%emt 0:00:05]} Be7 {[%emt 0:00:01]} 8. Be3 {[%emt 0:00:05]} Bb7 {[%emt 0:00:02]} 9. Nd2 {[%emt 0:00:04]} d6 {[%emt 0:00:01]} 10. c3 {[%emt 0:00:09]} Nd7 {[%emt 0:00:02]} 11. Rc1 {[%emt 0:00:06]} Ngf6 {[%emt 0:00:02]} 12. f3 {[%emt 0:00:07]} Rc8 {[%emt 0:00:06]} 13. Bb1 {[%emt 0:00:02]} Qb8 {[%emt 0:00:05]} 14. N2b3 {[%emt 0:00:03]} Qc7 {[%emt 0:00:09]} 15. Qe2 {[%emt 0:00:05]} Ne5 {[%emt 0:00:03]} 16. Nd2 {[%emt 0:00:07]} O-O {[%emt 0:00:13]} 17. Qf2 {[%emt 0:00:04]} Nc4 {[%emt 0:00:04]} 18. Nxc4 {[%emt 0:00:02]} Qxc4 {[%emt 0:00:03]} 19. Rfd1 {[%emt 0:00:02]} Nd7 {[%emt 0:00:05]} 20. Bd3 {[%emt 0:00:03]} Qc7 {[%emt 0:00:02]} 21. Bb1 {[%emt 0:00:08]} Ne5 {[%emt 0:00:02]} 22. Bf4 {[%emt 0:00:07]} Nc4 {[%emt 0:00:04]} 23. Nb3 {[%emt 0:00:23]} Rfd8 {[%emt 0:00:12]} 24. Kh1 {[%emt 0:00:01]} Qb8 {[%emt 0:00:06]} 25. Qc2 {[%emt 0:00:06]} g6 {[%emt 0:00:05]} 26. Nd2 {[%emt 0:00:03]} Nxd2 {[%emt 0:00:16]} 27. Qxd2 {[%emt 0:00:02]} Rc6 {[%emt 0:00:05]} 28. Ba2 {[%emt 0:00:03]} Rc7 {[%emt 0:00:08]} 29. Qe3 {[%emt 0:00:04]} Rcd7 {[%emt 0:00:06]} 30. Rd2 {[%emt 0:00:02]} Bc6 {[%emt 0:00:12]} 31. Rcd1 {[%emt 0:00:03]} a5 {[%emt 0:00:09]} 32. Qf2 {[%emt 0:00:16]} b4 {[%emt 0:00:03]} 33. cxb4 {[%emt 0:00:06]} axb4 {[%emt 0:00:03]} 34. axb4 {[%emt 0:00:11]} Qxb4 {[%emt 0:00:02]} 35. Rc1 {[%emt 0:00:05]} Ba8 {[%emt 0:00:11]} 36. Rdc2 {[%emt 0:00:16]} d5 {[%emt 0:00:12]} 37. exd5 {[%emt 0:00:07]} Bxd5 {[%emt 0:00:03]} 38. Bxd5 {[%emt 0:00:02]} Rxd5 {[%emt 0:00:02]} 39. g3 {[%emt 0:00:17]} Bf6 {[%emt 0:00:04]} 40. Kg2 {[%emt 0:00:18]} Qb5 {[%emt 0:00:12]} 41. Re1 {[%emt 0:00:05]} Qb4 {[%emt 0:00:02]} 42. Rce2 {[%emt 0:00:03]} Kg7 {[%emt 0:00:03]} 43. Bc7 {[%emt 0:00:06]} Rc8 {[%emt 0:00:03]} 44. Bf4 {[%emt 0:00:01]} Rcc5 {[%emt 0:00:08]} 45. Be3 {[%emt 0:00:03]} Rb5 {[%emt 0:00:02]} 46. Rb1 {[%emt 0:00:03]} Qb3 {[%emt 0:00:03]} 47. Bf4 {[%emt 0:00:04]} Rd3 {[%emt 0:00:02]} 48. Rc2 {[%emt 0:00:02]} Qd5 {[%emt 0:00:04]} 49. b4 {[%emt 0:00:03]} Rd4 {[%emt 0:00:05]} 50. Be3 {[%emt 0:00:02]} Rdxb4 {[%emt 0:00:02]} 51. Rxb4 {[%emt 0:00:05]} Rxb4 {[%emt 0:00:02]} 52. Rd2 {[%emt 0:00:00]} Qb5 {[%emt 0:00:02]} 53. Bf4 {[%emt 0:00:02]} Rb2 {[%emt 0:00:07]} 54. Be3 {[%emt 0:00:01]} Rxd2 {[%emt 0:00:02]} 55. Qxd2 {[%emt 0:00:00]} Qb2 {[%emt 0:00:03]} 56. Qxb2 {[%emt 0:00:01]} Bxb2 {[%emt 0:00:02]} 57. Kf2 {[%emt 0:00:00]} Kf6 {[%emt 0:00:03]} 58. Ke2 {[%emt 0:00:01]} Ke5 {[%emt 0:00:03]} 59. Kd3 {[%emt 0:00:02]} Kd5 {[%emt 0:00:02]} 60. Kc2 {[%emt 0:00:03]} Bg7 {[%emt 0:00:04]} 61. Kd3 {[%emt 0:00:01]} f5 {[%emt 0:00:02]} 62. Bd2 {[%emt 0:00:05]} e5 {[%emt 0:00:03]} 63. Bc1 {[%emt 0:00:02]} e4+ {[%emt 0:00:07]} 64. Ke2 {[%emt 0:00:03]} Bd4 {[%emt 0:00:03]} 65. Bf4 {[%emt 0:00:02]} exf3+ {[%emt 0:00:02]} 66. Kxf3 {[%emt 0:00:02]} Bg7 {[%emt 0:00:02]} 67. g4 {[%emt 0:00:04]} h6 {[%emt 0:00:03]} 68. gxf5 {[%emt 0:00:02]} gxf5 {[%emt 0:00:03]} 69. h3 {[%emt 0:00:01]} Ke6 {[%emt 0:00:02]} 70. Bd2 {[%emt 0:00:03]} h5 {[%emt 0:00:03]} 71. Bf4 {[%emt 0:00:01]} Bf6 {[%emt 0:00:03]} 72. Bd2 {[%emt 0:00:02]} 1/2-1/2